fUSD/lending_fUSD_20240527
["ID","MTS","AMOUNT","RATE_DAILY","PERIOD"]
[328074790,1716838240072,-464.41379835,0.00029187,2]
[328074791,1716838240083,-464.41379835,0.00029187,2]
[328074792,1716838240094,-464.41379835,0.00029187,2]
[328074793,1716838240104,-464.41379835,0.00029187,2]
[328074794,1716838240115,-464.41379835,0.00029187,2]
[328074795,1716838240125,-464.41379835,0.00029187,2]
[328074796,1716838240135,-464.41379835,0.00029187,2]
[328074797,1716838240145,-464.41379835,0.00029187,2]
[328074798,1716838240156,-464.41379835,0.00029187,2]
[328074799,1716838240177,-464.41379835,0.00029187,2]
[328074800,1716838240189,-464.41379835,0.00029187,2]
[328074801,1716838240202,-464.41379835,0.00029187,2]
[328074802,1716838240213,-464.41379835,0.00029187,2]
[328074803,1716838240223,-464.41379835,0.00029187,2]
[328074804,1716838240234,-464.41379835,0.00029187,2]
[328074805,1716838240245,-464.41379835,0.00029187,2]
[328074806,1716838240255,-464.41379835,0.00029187,2]
[328074807,1716838240267,-464.41379835,0.00029187,2]
[328074808,1716838240278,-464.41379835,0.00029187,2]
[328074809,1716838240288,-464.41379835,0.00029187,2]
[328074810,1716838240299,-464.41379835,0.00029187,2]
[328074811,1716838240310,-464.41379835,0.00029187,2]
[328074812,1716838240320,-464.41379835,0.00029187,2]
[328074813,1716838240331,-464.41379835,0.00029187,2]
[328074814,1716838240341,-464.41379835,0.00029187,2]
[328074815,1716838240351,-464.41379835,0.00029187,2]
[328074816,1716838240361,-464.41379835,0.00029187,2]
[328074817,1716838240372,-464.41379835,0.00029187,2]
[328074818,1716838240382,-464.41379835,0.00029187,2]
[328074819,1716838240393,-464.41379835,0.00029187,2]
[328074820,1716838240404,-155.0,0.00029195,2]
[328074821,1716838240414,-2008.37547828,0.00029196,2]
[328074822,1716838240424,-136815.23665114,0.00029197,2]
[328074823,1716838240440,-996.07371576,0.00029197,2]
[328074824,1716838240454,-2741.74296211,0.00029197,2]
[328074825,1716838240466,-2000.0,0.00029197,2]
[328074830,1716838242497,-464.41379835,0.00029187,2]
[328074831,1716838242510,-464.41379835,0.00029187,2]
[328074832,1716838242522,-464.41379835,0.00029187,2]
[328074833,1716838242536,-464.41379835,0.00029187,2]
[328074834,1716838242549,-464.41379835,0.00029187,2]
[328074835,1716838242561,-464.41379835,0.00029187,2]
[328074836,1716838242573,-464.41379835,0.00029187,2]
[328074837,1716838242585,-464.41379835,0.00029187,2]
[328074838,1716838242598,-161506.81174518,0.00029197,2]
[328074839,1716838242609,-300.0,0.00029198,2]
[328074840,1716838242621,-500.0,0.00029198,2]
[328074841,1716838242632,-1143.18878426,0.00029308,2]
[328074842,1716838242643,-281.08887081,0.00029333,2]
[328074843,1716838242656,-150.0,0.00029411,2]
[328074844,1716838242667,-1143.18878426,0.00029517,2]
[328074845,1716838242679,-153.20203222,0.00029557,2]
[328074846,1716838242691,-1073.71553512,0.00029563,2]
[328074847,1716838242702,-281.08887081,0.00029567,2]
[328074848,1716838242714,-1104.89523696,0.00029664,2]
[328074849,1716838242726,-173.92745168,0.00029696,2]
[328074850,1716838242737,-192.14,0.00029701,2]
[328074851,1716838242748,-155.24919301,0.00029716,2]
[328074853,1716838242759,-1143.18878426,0.00029727,2]
[328074855,1716838242771,-281.08887081,0.00029802,2]
[328074858,1716838242784,-2437.3121,0.0002983,2]
[328074859,1716838242795,-150.0,0.00029847,2]
[328074860,1716838242806,-154.88236009,0.00029875,2]
[328074861,1716838242820,-1518.28522627,0.000299,2]
[328074862,1716838242831,-1143.18878426,0.00029936,2]
[328074863,1716838242843,-2235.0,0.0003,3]
[328074864,1716838242855,-1073.71553512,0.00030028,10]
[328074865,1716838242868,-1000.0,0.00030036,2]
[328074866,1716838242879,-9847.89389595,0.00030036,2]
[328074867,1716838242892,-173.95959608,0.00030036,2]
[328074868,1716838242904,-337.725514,0.00030036,2]
[328074869,1716838242916,-1137.26245496,0.00030036,2]
[328074870,1716838242928,-3955.30551804,0.00030036,2]
[328074871,1716838242939,-200.00889078,0.00030036,2]
[328074872,1716838242950,-4014.89790266,0.00030036,2]
[328074873,1716838242962,-281.08887081,0.00030036,2]
[328074874,1716838242973,-3403.3265835,0.00030036,2]
[328074875,1716838242984,-170.92720783,0.00030036,2]
[328074876,1716838242996,-153.20203222,0.00030054,7]
[328074877,1716838243008,-156.42584305,0.00030102,7]
[328074878,1716838243020,-800.0,0.0003011,2]
[328074879,1716838243035,-298.80626366,0.00030126,2]
[328074880,1716838243047,-298.80626366,0.00030126,2]
[328074881,1716838243059,-717.36039825,0.00030132,31]
[328074882,1716838243072,-306.48466096,0.00030134,4]
[328074883,1716838243085,-240.98288585,0.00030134,4]
[328074884,1716838243097,-155.0,0.00030134,4]
[328074885,1716838243110,-155.0,0.00030134,4]
[328074886,1716838243123,-1545.74338327,0.00030134,4]
[328074887,1716838243135,-203.05839277,0.00030134,4]
[328074888,1716838243148,-474.9516767,0.00030134,4]
[328074889,1716838243160,-643.52892318,0.00030134,4]
[328074890,1716838243173,-156.82720984,0.00030134,4]
[328074891,1716838243186,-308.12039765,0.00030134,4]
[328074892,1716838243197,-228.90486939,0.00030134,4]
[328074893,1716838243210,-263.6642533,0.00030134,4]
[328074894,1716838243222,-155.14780718,0.00030134,4]
[328074895,1716838243234,-302.1495827,0.00030134,4]
[328074896,1716838243247,-10264.75066471,0.00030134,4]
[328074897,1716838243258,-388.66541956,0.00030134,4]
[328074898,1716838243270,-155.61849233,0.00030134,4]
[328074899,1716838243285,-222.61816632,0.00030134,4]
[328074900,1716838243296,-155.0,0.00030134,4]
[328074901,1716838243309,-155.96188869,0.00030134,2]
[328074902,1716838243321,-243.39321182,0.00030134,4]
[328074903,1716838243333,-155.0,0.00030134,4]
[328074904,1716838243346,-218.35253764,0.00030134,4]
[328074905,1716838243358,-156.87090762,0.00030134,4]
[328074906,1716838243370,-157.26178235,0.00030134,4]
[328074908,1716838243382,-187.46326182,0.00030134,4]
[328074910,1716838243395,-2705.01270279,0.00030134,4]
[328074912,1716838243407,-537.37963433,0.00030134,4]
[328074915,1716838243419,-155.39323176,0.00030134,4]
[328074918,1716838243432,-204.98320377,0.00030134,4]
[328074921,1716838243444,-156.11508961,0.00030134,4]
[328074923,1716838243457,-155.41772054,0.00030134,4]
[328074925,1716838243469,-155.78110347,0.00030134,4]
[328074927,1716838243482,-2039.60696169,0.00030134,4]
[328074930,1716838243495,-171.77481379,0.00030134,4]
[328074932,1716838243507,-326.93867171,0.00030134,4]
[328074934,1716838243520,-155.92567844,0.00030134,4]
[328074936,1716838243535,-155.2031768,0.00030134,4]
[328074937,1716838243547,-489.97595152,0.00030134,4]
[328074938,1716838243558,-277.01768233,0.00030134,4]
[328074940,1716838243568,-962.30983499,0.00030134,4]
[328074942,1716838243578,-205.00342331,0.00030134,4]
[328074944,1716838243589,-156.12171292,0.00030134,4]
[328074946,1716838243599,-155.62562668,0.00030134,4]
[328074948,1716838243610,-213.26726622,0.00030134,4]
[328074950,1716838243620,-356.81836994,0.00030134,4]
[328074951,1716838243630,-203.24524876,0.00030134,4]
[328074952,1716838243640,-3847.85642599,0.00030134,4]
[328074953,1716838243651,-2001.77490136,0.00030134,4]
[328074954,1716838243661,-155.30075573,0.00030134,4]
[328074955,1716838243672,-155.80480552,0.00030134,4]
[328074956,1716838243682,-155.0,0.00030134,4]
[328074957,1716838243693,-6167.89787081,0.00030134,4]
[328074958,1716838243703,-159.80236122,0.00030134,4]
[328074959,1716838243714,-685.78745847,0.00030134,4]
[328074960,1716838243724,-453.38872077,0.00030134,2]
[328074961,1716838244041,-155.61149666,0.00030134,4]
[328074962,1716838244060,-155.35256194,0.00030134,4]
[328074963,1716838244072,-857.6921104,0.00030134,4]
[328074964,1716838244082,-158.50661641,0.00030134,4]
[328074965,1716838244092,-155.0,0.00030134,4]
[328074967,1716838244102,-163.57391201,0.00030134,4]
[328074969,1716838244113,-155.0,0.00030135,4]
[328074971,1716838244122,-150.0,0.00030135,7]
[328074973,1716838244132,-118568.91203916,0.00030136,11]
[328074990,1716838244435,-6011.45160102,0.00030136,11]
[328074992,1716838244447,-5973.31942028,0.00030136,11]
[328074994,1716838244463,-464.41379835,0.00029187,2]
[328074996,1716838244473,-1081.16110599,0.00030136,11]
[328074998,1716838244484,-1001.48497724,0.00030136,11]
[328075000,1716838244496,-3032.46740009,0.00030136,11]
[328075034,1716838246514,-464.41379835,0.00029187,2]
[328075036,1716838246524,-443.67155363,0.00029187,2]
[328075038,1716838246538,-20.74224472,0.00029187,2]
[328075040,1716838246548,-464.41379835,0.00029187,2]
[328075041,1716838246557,-464.41379835,0.00029187,2]
[328075042,1716838246566,-464.41379835,0.00029187,2]
[328075043,1716838246575,-464.41379835,0.00029187,2]
[328075044,1716838246585,-464.41379835,0.00029187,2]
[328075045,1716838246594,-464.41379835,0.00029187,2]
[328075046,1716838246604,-464.41379835,0.00029187,2]
[328075047,1716838246613,-379.7284389,0.00029196,2]
[328075048,1716838246622,-220.10543794,0.00029196,2]
[328075049,1716838246632,-2815.74713634,0.00029196,2]
[328075050,1716838246641,-276.74005919,0.00029196,2]
[328075051,1716838246652,-31709.43501741,0.00030136,11]
[328075052,1716838246661,-447.12860512,0.00030136,6]
[328075053,1716838246671,-345.77124987,0.00030136,4]
[328075054,1716838246681,-643.09300531,0.00030136,4]
[328075055,1716838246691,-500.0,0.00030136,6]
[328075056,1716838246701,-500.0,0.00030136,6]
[328075057,1716838246710,-500.0,0.00030136,6]
[328075058,1716838246719,-500.0,0.00030136,6]
[328075059,1716838246728,-500.0,0.00030136,6]
[328075060,1716838246738,-500.0,0.00030136,6]
[328075061,1716838246748,-500.0,0.00030136,6]
[328075062,1716838246757,-500.0,0.00030136,6]
[328075063,1716838246766,-500.0,0.00030136,6]
[328075064,1716838246775,-500.0,0.00030136,6]
[328075065,1716838246786,-500.0,0.00030136,6]
[328075066,1716838246796,-500.0,0.00030136,6]
[328075067,1716838246806,-500.0,0.00030136,6]
[328075068,1716838246817,-500.0,0.00030136,6]
[328075070,1716838246828,-500.0,0.00030136,6]
[328075072,1716838246839,-500.0,0.00030136,6]
[328075074,1716838246848,-277.36042415,0.00030136,6]
[328075076,1716838246858,-500.0,0.00030136,6]
[328075078,1716838246868,-500.0,0.00030136,6]
[328075080,1716838246877,-500.0,0.00030136,6]
[328075082,1716838246887,-500.0,0.00030136,6]
[328075084,1716838246898,-500.0,0.00030136,6]
[328075086,1716838246907,-500.0,0.00030136,6]
[328075088,1716838246916,-500.0,0.00030136,6]
[328075090,1716838246926,-338.97,0.00030136,6]
[328075092,1716838246935,-500.0,0.00030136,6]
[328075094,1716838246944,-2000.0,0.00030136,2]
[328075096,1716838246954,-200.0,0.00030136,2]
[328075098,1716838246963,-500.0,0.00030136,6]
[328075100,1716838246972,-500.0,0.00030136,6]
[328075102,1716838246982,-500.0,0.00030136,6]
[328075104,1716838246991,-500.0,0.00030136,6]
[328075106,1716838247001,-500.0,0.00030136,6]
[328075108,1716838247010,-500.0,0.00030136,6]
[328075109,1716838247019,-500.0,0.00030136,6]
[328075110,1716838247030,-500.0,0.00030136,6]
[328075111,1716838247039,-500.0,0.00030136,6]
[328075112,1716838247049,-500.0,0.00030136,6]
[328075113,1716838247058,-500.0,0.00030136,6]
[328075114,1716838247067,-500.0,0.00030136,6]
[328075115,1716838247077,-500.0,0.00030136,6]
[328075116,1716838247086,-500.0,0.00030136,6]
[328075117,1716838247096,-500.0,0.00030136,6]
[328075118,1716838247105,-500.0,0.00030136,6]
[328075119,1716838247115,-500.0,0.00030136,6]
[328075120,1716838247125,-500.0,0.00030136,6]
[328075121,1716838247134,-500.0,0.00030136,6]
[328075122,1716838247144,-500.0,0.00030136,6]
[328075123,1716838247154,-500.0,0.00030136,6]
[328075124,1716838247164,-372.0,0.00030136,6]
[328075125,1716838247173,-500.0,0.00030136,6]
[328075126,1716838247183,-500.0,0.00030136,6]
[328075128,1716838247192,-500.0,0.00030136,6]
[328075129,1716838247202,-500.0,0.00030136,6]
[328075131,1716838247212,-500.0,0.00030136,6]
[328075133,1716838247222,-500.0,0.00030136,6]
[328075135,1716838247231,-269.27317005,0.00030136,6]
[328075138,1716838247241,-500.0,0.00030136,6]
[328075140,1716838247251,-500.0,0.00030136,6]
[328075142,1716838247260,-500.0,0.00030136,6]
[328075144,1716838247270,-500.0,0.00030136,6]
[328075145,1716838247281,-500.0,0.00030136,6]
[328075147,1716838247290,-500.0,0.00030136,6]
[328075149,1716838247300,-500.0,0.00030136,6]
[328075151,1716838247310,-500.0,0.00030136,6]
[328075154,1716838247320,-500.0,0.00030136,6]
[328075156,1716838247330,-500.0,0.00030136,6]
[328075157,1716838247339,-209.33853372,0.00030136,6]
[328075159,1716838247349,-500.0,0.00030136,6]
[328075162,1716838247359,-500.0,0.00030136,6]
[328075164,1716838247369,-500.0,0.00030136,6]
[328075166,1716838247378,-500.0,0.00030136,6]
[328075168,1716838247388,-500.0,0.00030136,6]
[328075170,1716838247397,-509.61319692,0.00030136,6]
[328075172,1716838247407,-500.0,0.00030136,6]
[328075174,1716838247416,-373.10588509,0.00030136,6]
[328075176,1716838247425,-500.0,0.00030136,6]
[328075178,1716838247435,-500.0,0.00030136,6]
[328075180,1716838247445,-500.0,0.00030136,6]
[328075182,1716838247454,-152.13855738,0.00030136,6]
[328075183,1716838247463,-500.0,0.00030136,6]
[328075186,1716838247473,-500.0,0.00030136,6]
[328075187,1716838247483,-182.73447094,0.00030136,6]
[328075190,1716838247493,-500.0,0.00030136,6]
[328075192,1716838247503,-500.0,0.00030136,6]
[328075194,1716838247512,-500.0,0.00030136,6]
[328075195,1716838247522,-500.0,0.00030136,6]
[328075197,1716838247532,-500.0,0.00030136,6]
[328075199,1716838247542,-500.0,0.00030136,6]
[328075201,1716838247551,-500.0,0.00030136,6]
[328075203,1716838247562,-500.0,0.00030136,6]
[328075206,1716838247573,-500.0,0.00030136,6]
[328075208,1716838247583,-500.0,0.00030136,6]
[328075210,1716838247593,-500.0,0.00030136,6]
[328075212,1716838247603,-500.0,0.00030136,6]
[328075214,1716838247613,-500.0,0.00030136,6]
[328075216,1716838247623,-512.50095755,0.00030136,6]
[328075218,1716838247633,-500.0,0.00030136,6]
[328075220,1716838247642,-231.59,0.00030136,6]
[328075222,1716838247652,-500.0,0.00030136,6]
[328075224,1716838247662,-510.4227586,0.00030136,6]
[328075226,1716838247671,-500.0,0.00030136,6]
[328075228,1716838247680,-500.0,0.00030136,6]
[328075230,1716838247690,-500.0,0.00030136,6]
[328075232,1716838247700,-500.0,0.00030136,6]
[328075234,1716838247710,-500.0,0.00030136,6]
[328075236,1716838247720,-509.98106794,0.00030136,6]
[328075238,1716838247729,-500.0,0.00030136,6]
[328075240,1716838247739,-500.0,0.00030136,6]
[328075242,1716838247749,-500.0,0.00030136,6]
[328075244,1716838247758,-500.0,0.00030136,6]
[328075246,1716838247767,-500.0,0.00030136,6]
[328075248,1716838247777,-500.0,0.00030136,6]
[328075250,1716838247787,-500.0,0.00030136,6]
[328075252,1716838247796,-500.0,0.00030136,6]
[328075254,1716838247806,-516.48844737,0.00030136,6]
[328075256,1716838247816,-500.0,0.00030136,6]
[328075258,1716838247830,-500.0,0.00030136,6]
[328075260,1716838247840,-500.0,0.00030136,6]
[328075262,1716838247849,-155.59465359,0.00030136,6]
[328075264,1716838247860,-500.0,0.00030136,6]
[328075266,1716838247869,-500.0,0.00030136,6]
[328075268,1716838247878,-500.0,0.00030136,6]
[328075270,1716838247888,-500.0,0.00030136,6]
[328075272,1716838247900,-500.0,0.00030136,6]
[328075274,1716838247909,-500.0,0.00030136,6]
[328075276,1716838247919,-363.98,0.00030136,6]
[328075278,1716838247929,-500.0,0.00030136,6]
[328075280,1716838247939,-510.14521618,0.00030136,6]
[328075282,1716838247949,-500.0,0.00030136,6]
[328075284,1716838247959,-500.0,0.00030136,6]
[328075286,1716838247968,-500.0,0.00030136,6]
[328075288,1716838247978,-500.0,0.00030136,6]
[328075290,1716838247987,-500.0,0.00030136,6]
[328075292,1716838247997,-500.0,0.00030136,6]
[328075294,1716838248007,-500.0,0.00030136,6]
[328075296,1716838248016,-219.53,0.00030136,6]
[328075298,1716838248025,-500.0,0.00030136,6]
[328075299,1716838248036,-500.0,0.00030136,6]
[328075301,1716838248046,-500.0,0.00030136,6]
[328075304,1716838248056,-500.0,0.00030136,6]
[328075306,1716838248065,-510.28272335,0.00030136,6]
[328075308,1716838248076,-169.11154535,0.00030136,6]
[328075310,1716838248086,-500.0,0.00030136,6]
[328075312,1716838248096,-500.0,0.00030136,6]
[328075314,1716838248107,-500.0,0.00030136,6]
[328075315,1716838248116,-500.0,0.00030136,6]
[328075317,1716838248125,-500.0,0.00030136,6]
[328075320,1716838248135,-500.0,0.00030136,6]
[328075321,1716838248145,-500.0,0.00030136,6]
[328075324,1716838248155,-500.0,0.00030136,6]
[328075325,1716838248164,-500.0,0.00030136,6]
[328075327,1716838248173,-500.0,0.00030136,6]
[328075329,1716838248182,-500.0,0.00030136,6]
[328075331,1716838248192,-500.0,0.00030136,6]
[328075333,1716838248202,-500.0,0.00030136,6]
[328075335,1716838248211,-500.0,0.00030136,6]
[328075337,1716838248220,-500.0,0.00030136,6]
[328075339,1716838248229,-500.0,0.00030136,6]
[328075341,1716838248239,-500.0,0.00030136,6]
[328075343,1716838248248,-233.87190172,0.00030136,6]
[328075345,1716838248258,-500.0,0.00030136,6]
[328075347,1716838248268,-500.0,0.00030136,6]
[328075350,1716838248278,-500.0,0.00030136,6]
[328075352,1716838248288,-500.0,0.00030136,6]
[328075354,1716838248298,-500.0,0.00030136,6]
[328075356,1716838248307,-500.0,0.00030136,6]
[328075358,1716838248316,-500.0,0.00030136,6]
[328075360,1716838248325,-500.0,0.00030136,6]
[328075362,1716838248335,-500.0,0.00030136,6]
[328075364,1716838248344,-576.36983582,0.00030136,6]
[328075366,1716838248354,-500.0,0.00030136,6]
[328075368,1716838248363,-202.28,0.00030136,6]
[328075370,1716838248372,-513.96683805,0.00030136,6]
[328075371,1716838248382,-500.0,0.00030136,6]
[328075373,1716838248393,-500.0,0.00030136,6]
[328075375,1716838248401,-500.0,0.00030136,6]
[328075376,1716838248411,-500.0,0.00030136,6]
[328075377,1716838248420,-500.0,0.00030136,6]
[328075378,1716838248430,-500.0,0.00030136,6]
[328075379,1716838248440,-500.0,0.00030136,6]
[328075380,1716838248450,-500.0,0.00030136,6]
[328075381,1716838248459,-500.0,0.00030136,6]
[328075382,1716838248469,-500.0,0.00030136,6]
[328075383,1716838248479,-500.0,0.00030136,6]
[328075384,1716838248488,-500.0,0.00030136,6]
[328075385,1716838248498,-500.0,0.00030136,6]
[328075386,1716838248507,-500.0,0.00030136,6]
[328075387,1716838248517,-500.0,0.00030136,6]
[328075388,1716838248527,-157.581842,0.00030136,7]
[328075389,1716838248538,-500.0,0.00030136,6]
[328075390,1716838248548,-500.0,0.00030136,6]
[328075391,1716838248559,-500.0,0.00030136,6]
[328075392,1716838248568,-500.0,0.00030136,6]
[328075393,1716838248578,-500.0,0.00030136,6]
[328075394,1716838248588,-500.0,0.00030136,6]
[328075395,1716838248598,-500.0,0.00030136,6]
[328075396,1716838248608,-500.0,0.00030136,6]
[328075397,1716838248617,-500.0,0.00030136,6]
[328075398,1716838248626,-500.0,0.00030136,6]
[328075399,1716838248636,-500.0,0.00030136,6]
[328075400,1716838248646,-500.0,0.00030136,6]
[328075401,1716838248656,-571.67870049,0.00030136,6]
[328075402,1716838248667,-500.0,0.00030136,6]
[328075403,1716838248677,-500.0,0.00030136,6]
[328075404,1716838248686,-500.0,0.00030136,6]
[328075405,1716838248696,-500.0,0.00030136,6]
[328075406,1716838248706,-500.0,0.00030136,6]
[328075407,1716838248715,-500.0,0.00030136,6]
[328075408,1716838248725,-500.0,0.00030136,6]
[328075409,1716838248735,-500.0,0.00030136,6]
[328075410,1716838248745,-500.0,0.00030136,6]
[328075411,1716838248755,-500.0,0.00030136,6]
[328075412,1716838248764,-500.0,0.00030136,6]
[328075413,1716838248774,-500.0,0.00030136,6]
[328075414,1716838248785,-500.0,0.00030136,6]
[328075415,1716838248795,-500.0,0.00030136,6]
[328075416,1716838248805,-500.0,0.00030136,6]
[328075417,1716838248816,-500.0,0.00030136,6]
[328075418,1716838248830,-500.0,0.00030136,6]
[328075419,1716838248840,-165.86,0.00030136,6]
[328075420,1716838248851,-500.0,0.00030136,6]
[328075421,1716838248862,-290.89,0.00030136,6]
[328075422,1716838248872,-500.0,0.00030136,6]
[328075423,1716838248881,-500.0,0.00030136,6]
[328075424,1716838248892,-500.0,0.00030136,6]
[328075425,1716838248905,-500.0,0.00030136,6]
[328075426,1716838248916,-504.72124756,0.00030136,6]
[328075427,1716838248926,-500.0,0.00030136,6]
[328075428,1716838248935,-500.0,0.00030136,6]
[328075429,1716838248945,-500.0,0.00030136,6]
[328075430,1716838248955,-500.0,0.00030136,6]
[328075431,1716838248964,-260.97,0.00030136,6]
[328075432,1716838248974,-500.0,0.00030136,6]
[328075433,1716838248983,-500.0,0.00030136,6]
[328075434,1716838248995,-500.0,0.00030136,6]
[328075435,1716838249005,-500.0,0.00030136,6]
[328075436,1716838249015,-500.0,0.00030136,6]
[328075437,1716838249024,-500.0,0.00030136,6]
[328075438,1716838249034,-500.0,0.00030136,6]
[328075439,1716838249044,-500.0,0.00030136,6]
[328075440,1716838249054,-500.0,0.00030136,6]
[328075441,1716838249063,-500.0,0.00030136,6]
[328075442,1716838249074,-500.0,0.00030136,6]
[328075443,1716838249084,-500.0,0.00030136,6]
[328075444,1716838249266,-513.92,0.00030136,6]
[328075445,1716838249277,-500.0,0.00030136,6]
[328075446,1716838249287,-500.0,0.00030136,6]
[328075447,1716838249297,-500.0,0.00030136,6]
[328075448,1716838249307,-500.0,0.00030136,6]
[328075449,1716838249317,-500.0,0.00030136,6]
[328075450,1716838249327,-500.0,0.00030136,6]
[328075451,1716838249337,-500.0,0.00030136,6]
[328075452,1716838249347,-500.0,0.00030136,6]
[328075453,1716838249357,-500.0,0.00030136,6]
[328075454,1716838249367,-500.0,0.00030136,6]
[328075455,1716838249377,-545.16,0.00030136,6]
[328075456,1716838249387,-500.0,0.00030136,6]
[328075457,1716838249398,-500.0,0.00030136,6]
[328075458,1716838249408,-500.0,0.00030136,6]
[328075459,1716838249418,-500.0,0.00030136,6]
[328075460,1716838249427,-500.0,0.00030136,6]
[328075461,1716838249438,-500.0,0.00030136,6]
[328075462,1716838249447,-500.0,0.00030136,6]
[328075463,1716838249458,-500.0,0.00030136,6]
[328075464,1716838249468,-500.0,0.00030136,6]
[328075465,1716838249478,-500.0,0.00030136,6]
[328075466,1716838249488,-410.05626475,0.00030136,6]
[328075467,1716838249497,-500.0,0.00030136,6]
[328075468,1716838249507,-500.0,0.00030136,6]
[328075469,1716838249516,-643.27,0.00030136,6]
[328075470,1716838249527,-500.0,0.00030136,6]
[328075471,1716838249538,-500.0,0.00030136,6]
[328075472,1716838249547,-500.0,0.00030136,6]
[328075473,1716838249558,-500.0,0.00030136,6]
[328075474,1716838249569,-300.0,0.00030136,6]
[328075475,1716838249580,-501.53678435,0.00030136,6]
[328075476,1716838249590,-500.0,0.00030136,6]
[328075477,1716838249600,-500.0,0.00030136,6]
[328075478,1716838249611,-500.0,0.00030136,6]
[328075479,1716838249621,-500.0,0.00030136,6]
[328075480,1716838249631,-500.0,0.00030136,6]
[328075481,1716838249640,-500.0,0.00030136,6]
[328075482,1716838249650,-500.0,0.00030136,6]
[328075483,1716838249660,-500.0,0.00030136,6]
[328075484,1716838249671,-195.94233307,0.00030136,6]
[328075485,1716838249681,-500.0,0.00030136,6]
[328075486,1716838249691,-500.0,0.00030136,6]
[328075487,1716838249701,-500.0,0.00030136,6]
[328075488,1716838249711,-500.0,0.00030136,6]
[328075489,1716838249721,-500.0,0.00030136,6]
[328075490,1716838249731,-500.0,0.00030136,6]
[328075491,1716838249741,-500.0,0.00030136,6]
[328075492,1716838249751,-500.0,0.00030136,6]
[328075493,1716838249760,-500.0,0.00030136,6]
[328075494,1716838249771,-500.0,0.00030136,6]
[328075495,1716838249781,-154.11345714,0.00030136,6]
[328075496,1716838249792,-500.0,0.00030136,6]
[328075497,1716838249802,-500.0,0.00030136,6]
[328075498,1716838249812,-556.9664693,0.00030136,6]
[328075499,1716838249827,-500.0,0.00030136,6]
[328075500,1716838249837,-500.0,0.00030136,6]
[328075501,1716838249847,-500.0,0.00030136,6]
[328075502,1716838249859,-500.0,0.00030136,6]
[328075503,1716838249868,-500.0,0.00030136,6]
[328075504,1716838249878,-500.0,0.00030136,6]
[328075505,1716838249888,-500.0,0.00030136,6]
[328075506,1716838249900,-500.0,0.00030136,6]
[328075507,1716838249911,-500.0,0.00030136,6]
[328075508,1716838249921,-500.0,0.00030136,6]
[328075509,1716838249931,-500.0,0.00030136,6]
[328075510,1716838249940,-500.0,0.00030136,6]
[328075511,1716838249950,-500.0,0.00030136,6]
[328075512,1716838249960,-515.66,0.00030136,6]
[328075513,1716838249970,-500.0,0.00030136,6]
[328075514,1716838249980,-500.0,0.00030136,6]
[328075515,1716838249990,-500.0,0.00030136,6]
[328075516,1716838250000,-500.0,0.00030136,6]
[328075517,1716838250010,-500.0,0.00030136,6]
[328075518,1716838250020,-500.0,0.00030136,6]
[328075519,1716838250031,-500.0,0.00030136,6]
[328075520,1716838250040,-500.0,0.00030136,6]
[328075521,1716838250050,-500.0,0.00030136,6]
[328075522,1716838250060,-500.0,0.00030136,6]
[328075523,1716838250070,-500.0,0.00030136,6]
[328075524,1716838250080,-500.0,0.00030136,6]
[328075525,1716838250089,-500.0,0.00030136,6]